Cogmind - Beta 10.1 @@@ ROGUE MODE // 2020.09.21 @ 19:15:28 Player: Tmvn Result: Self-destructed Performance ------------- Evolutions (2) 1000 Regions Visited (4) 800 Robots Destroyed (34) 170 Value Destroyed (620) 620 Prototype IDs (0) 0 Alien Tech Used (0) 0 Bonus (0) 0 TOTAL SCORE: 2590 Bonus ------- None Cogmind --------- Core Integrity 361/550 Matter 172/300 Energy 100/100 System Corruption 0% Temperature Cool (0) Movement Walking (180) Ox2 Location -8/Materials Parts ------- > --- POWER (1) -------- (None) > --- PROPULSION (3) --- Aluminum Leg > --- UTILITY (5) ------ Improved Heat Sink Medium Storage Unit Medium Storage Unit Advanced Signal Interpreter > --- WEAPON (2) ------- Assault Cannon > --- INVENTORY (12) --- Wheel Wheel Improved Heat Sink Small Storage Unit Rocket Launcher Peak State ------------ > --- POWER ------------ Light Angular Momentum Engine > --- PROPULSION ------- Wheel Wheel Wheel > --- UTILITY ---------- Improved Heat Sink Small Storage Unit Medium Storage Unit Medium Storage Unit Advanced Signal Interpreter > --- WEAPON ----------- Beamcaster Assault Cannon > --- INVENTORY -------- Light Ion Engine Aluminum Leg Carbon-fiber Leg Wheel Wheel Improved Heat Sink Rocket Launcher Rocket Launcher [Rating: 26] Favorites ----------- Power Ion Engine Engine Ion Engine Propulsion Aluminum Leg Leg Aluminum Leg Wheel Wheel Utility Medium Storage Unit Device Improved Heat Sink Storage Medium Storage Unit Processor Advanced Signal Interpreter Protection Light Armor Plating Weapon Medium Laser Energy Gun Medium Laser Ballistic Gun Shotgun Ballistic Cannon Improved Light Cannon Launcher Rocket Launcher Build | -11 -10 -9 -9 -8 ------- Run | Scr Mat Mat Min Mat Slots Evolved 4 | . . 2 . 2 Power . | . . . . . Propulsion 1 | . . 1 . . Utility 3 | . . 1 . 2 Weapon . | . . . . . Parts Attached 38 | . 3 5 23 7 Power 5 | . . 1 3 1 Engine 5 | . . 1 3 1 Core . | . . . . . Reactor . | . . . . . Propulsion 15 | . . 2 11 2 Treads . | . . . . . Leg 10 | . . 2 6 2 Wheel 5 | . . . 5 . Hover . | . . . . . Flight . | . . . . . Utility 8 | . 2 . 4 2 Device 3 | . . . 3 . Storage 3 | . 1 . 1 1 Processor 1 | . . . . 1 Hackware . | . . . . . Protection 1 | . 1 . . . Artifact . | . . . . . Weapon 10 | . 1 2 5 2 Energy Gun 3 | . . 1 2 . Energy Cannon . | . . . . . Ballistic Gun 1 | . 1 . . . Ballistic Cannon 2 | . . . 1 1 Launcher 4 | . . 1 2 1 Special Weapon . | . . . . . Impact Weapon . | . . . . . Slashing Weapon . | . . . . . Piercing Weapon . | . . . . . Special Melee Weapon . | . . . . . Unidentified Prototypes . | . . . . . Parts Lost 20 | . . 1 11 8 Power 4 | . . . 2 2 Propulsion 8 | . . . 4 4 Utility 2 | . . . 2 . Weapon 6 | . . 1 3 2 Highest Loss Streak 10 | . . 1 10 8 Average Slot Usage (%) 87 | . 86 86 89 85 Engine 10 | . 14 11 9 8 Leg 23 | . 28 33 23 1 Wheel 4 | . . . 4 23 Device 5 | . . . 10 9 Storage 14 | . 14 11 13 18 Processor 1 | . . . . 7 Protection 5 | . 2 11 5 . Energy Gun 11 | . 17 12 9 7 Ballistic Gun 3 | . 9 6 . . Ballistic Cannon 4 | . . . 6 8 Launcher 2 | . . 1 4 1 Naked Turns . | . . . . . Heaviest Build 36 | 13 21 22 31 36 Greatest Support 40 | 20 20 30 40 30 Greatest Overweight (x) 3 | . 1 . 3 2 Average Overweight (x) . | . . . . 1 Largest Inventory Capacity 14 | 6 10 8 10 14 Average Capacity 8 | 6 7 8 8 11 Most Carried 9 | 6 8 8 8 9 Average Carried 5 | 5 5 6 5 7 Final Capacity 12 | 6 8 8 10 12 Final Carried 8 | 2 8 7 7 5 Class Distribution -------------------- 59% | Mutant 40% | Scavenger-Mutant Dominant Class ---------------- Mutant | -10/Materials Mutant | -9/Materials Scavenger-Mutant | -9/Mines Scavenger-Mutant | -8/Materials Resources | -11 -10 -9 -9 -8 ----------- Run | Scr Mat Mat Min Mat Matter Collected 827 | 200 50 90 467 20 Remotely . | . . . . . Salvage Created 639 | . 74 351 153 61 Parts 34 | . 6 17 11 . Haulers Intercepted . | . . . . . Recyclers Shooed 1 | . . . 1 . Parts Field Recycled . | . . . . . Retrieved Matter . | . . . . . Parts Self-Destructed . | . . . . . Prevented . | . . . . . Kills | -11 -10 -9 -9 -8 ------- Run | Scr Mat Mat Min Mat Combat Hostiles Destroyed 23 | . 1 5 14 3 Guns 8 | . 1 3 4 . Cannons 4 | . . . 3 1 AOE 11 | . . 2 7 2 Classes Destroyed 10 | . 2 4 3 1 Worker 3 | . 2 . . 1 Builder 1 | . . 1 . . Tunneler 1 | . . . 1 . Recycler 3 | . . 2 1 . Watcher 3 | . . 3 . . Swarmer 7 | . . . 7 . Grunt 7 | . 1 4 . 2 Duelist 1 | . . . . 1 Sentry 1 | . . 1 . . Assembled 7 | . . . 7 . Best Kill Streak 6 | . 2 6 5 3 Combat Bots Only 4 | . 1 2 4 3 Max Kills in Single Turn 3 | . 1 3 3 1 Gunslinging . | . . . . . Exploded 2 | . . 1 2 1 Melee . | . . . . . Uniques/NPCs Destroyed . | . . . . . Combat | -11 -10 -9 -9 -8 -------- Run | Scr Mat Mat Min Mat Damage Taken 2278 | . 10 244 1192 832 Core 398 | . . 53 156 189 Absorbed by Shields . | . . . . . Core Remaining (%) 82 | 100 100 . 47 . Volleys Fired 75 | . 5 18 35 17 Largest 2 | . 2 2 2 2 Hottest 119 | . 73 100 108 119 Shots Fired 132 | . 10 35 60 27 Gun 71 | . 10 31 23 7 Cannon 39 | . . . 22 17 Launcher 22 | . . 4 15 3 Special . | . . . . . Kinetic 54 | . 5 10 22 17 Thermal 56 | . 5 21 23 7 Explosive 22 | . . 4 15 3 Electromagnetic . | . . . . . Robot Hit Streak 11 | . 2 11 6 7 Robot Miss Streak 4 | . 2 2 4 2 Penetration Max . | . . . . . Secondary Targets . | . . . . . Shots Hit Robots 72 | . 5 27 23 17 Core Hits 50 | . 4 16 22 8 Critical Hits . | . . . . . Critical Kills . | . . . . . Critical Parts Destroyed . | . . . . . Melee Attacks . | . . . . . Impact . | . . . . . Slashing . | . . . . . Piercing . | . . . . . Sneak Attacks . | . . . . . Combat Hostiles . | . . . . . Follow-up Attacks . | . . . . . Damage Inflicted 2189 | . 43 780 817 549 Guns 596 | . 43 315 135 103 Cannons 468 | . . . 211 257 Explosions 1125 | . . 465 471 189 Melee . | . . . . . Ramming . | . . . . . Kinetic 598 | . 18 112 211 257 Thermal 634 | . 25 203 303 103 Explosive 957 | . . 465 303 189 Electromagnetic . | . . . . . Impact . | . . . . . Slashing . | . . . . . Piercing . | . . . . . Highest Corruption . | . . . . . Average Corruption . | . . . . . Corruption Purged . | . . . . . Overload Shots . | . . . . . Overflow Damage 69 | . . 20 24 25 Projectiles 6 | . . . 6 . Explosions 63 | . . 20 18 25 Melee . | . . . . . Knockbacks 11 | . . . 4 7 Impact . | . . . . . Kinetic 10 | . . . 4 6 Secondary 1 | . . . . 1 Self-Inflicted Damage 267 | . . 26 145 96 Shots 12 | . . 3 6 3 Rammed . | . . . . . Targets Rammed . | . . . . . Kicked . | . . . . . Crushed . | . . . . . Highest Temperature 297 | . 42 156 297 40 Average Temperature 63 | . 16 65 82 13 Received Heat Transfer 623 | . 6 93 200 324 Effects 2 | . . . 2 . Energy Bleed 1 | . . . 1 . Interference 1 | . . . 1 . Siege Activations . | . . . . . Robots Corrupted . | . . . . . Combat Hostiles . | . . . . . Parts Fried . | . . . . . Impact Corruptions . | . . . . . Robots Melted . | . . . . . Combat Hostiles . | . . . . . Parts Melted 2 | . . 1 1 . Heat Transferred 1384 | . 74 592 533 185 Parts Sabotaged . | . . . . . Parts Stolen . | . . . . . Parts Stripped . | . . . . . Power Chain Reactions . | . . . . . Missiles Intercepted . | . . . . . Alert | -11 -10 -9 -9 -8 ------- Run | Scr Mat Mat Min Mat Peak Influence 374 | . 45 179 374 116 Initial 69 | . . 18 69 36 Average 128 | . 6 72 235 55 Maximum Alert Level 1 | . . . 1 . Low Security (%) 77 | 100 100 100 49 100 Level 1 22 | . . . 50 . Level 2 . | . . . . . Level 3 . | . . . . . Level 4 . | . . . . . Level 5 . | . . . . . High Security . | . . . . . Max Security . | . . . . . Squads Dispatched 2 | . 1 . . 1 Investigation 2 | . 1 . . 1 Extermination . | . . . . . Reinforcement . | . . . . . Assault . | . . . . . Garrison . | . . . . . Intercept . | . . . . . Construction Impeded . | . . . . . Haulers Reinforced . | . . . . . Stealth | -11 -10 -9 -9 -8 --------- Run | Scr Mat Mat Min Mat Distress Signals 1 | . . 1 . . Communications Jammed . | . . . . . Distress Signals . | . . . . . Times Spotted 31 | . 1 8 16 6 Peak Tracking Total 6 | . 1 6 5 5 Tactical Retreats 2 | . . 1 1 . Traps | -11 -10 -9 -9 -8 ------- Run | Scr Mat Mat Min Mat Traps Triggered 4 | . 2 1 . 1 Indirectly . | . . . . . Trap Hack Attempts . | . . . . . Triggered . | . . . . . Disarmed . | . . . . . Reprogrammed . | . . . . . Reused . | . . . . . Traps Extracted . | . . . . . Installed . | . . . . . Triggered . | . . . . . Machines | -11 -10 -9 -9 -8 ---------- Run | Scr Mat Mat Min Mat Machines Disabled 10 | . . . 10 . Max in Single Turn 10 | . . . 10 . Machines Sabotaged . | . . . . . Garrisons Compromised . | . . . . . Overloaded Fab Kills . | . . . . . Fab Network Shutdowns . | . . . . . Hacking | -11 -10 -9 -9 -8 --------- Run | Scr Mat Mat Min Mat Machines Accessed 5 | . 2 2 . 1 Terminals 4 | . 1 2 . 1 Fabricators . | . . . . . Repair Stations . | . . . . . Recycling Units 1 | . 1 . . . Scanalyzers . | . . . . . Garrison Access . | . . . . . Total Hacks 5 | . 2 2 . 1 Successful 4 | . 1 2 . 1 Failed 1 | . 1 . . . Catastrophic . | . . . . . Database Lockouts . | . . . . . Manual . | . . . . . Terminals 4 | . 1 2 . 1 Fabricators . | . . . . . Repair Stations . | . . . . . Recycling Units 1 | . 1 . . . Scanalyzers . | . . . . . Garrison Access . | . . . . . Terminal Hacks 4 | . 1 2 . 1 Recycling Unit Index 1 | . . 1 . . Surveillance Status 1 | . . . . 1 Transport Status 1 | . . 1 . . Hauler Manifests 1 | . 1 . . . Fabricator Hacks . | . . . . . Repair Station Hacks . | . . . . . Recycling Unit Hacks . | . . . . . Scanalyzer . | . . . . . Garrison Access Hacks . | . . . . . Unauthorized Hacks . | . . . . . Terminals . | . . . . . Fabricators . | . . . . . Repair Stations . | . . . . . Recycling Units . | . . . . . Scanalyzers . | . . . . . Garrison Access . | . . . . . Data Cores Recovered . | . . . . . Used . | . . . . . Hacking Detections 2 | . 1 1 . . Full Trace Events . | . . . . . Feedback Events . | . . . . . Feedback Blocked . | . . . . . Robot Schematics Acquired . | . . . . . Robots Built . | . . . . . Matter . | . . . . . Time . | . . . . . Total Robot Build Rating . | . . . . . Part Schematics Acquired . | . . . . . Parts Built . | . . . . . Matter . | . . . . . Time . | . . . . . Total Part Build Rating . | . . . . . Parts Repaired . | . . . . . Time . | . . . . . Parts Recycled . | . . . . . Recycled Matter . | . . . . . Retrieved Matter . | . . . . . Retrieved Components . | . . . . . Parts Scanalyzed . | . . . . . Part Schematics Acquired . | . . . . . Parts Damaged . | . . . . . Bothacking | -11 -10 -9 -9 -8 ------------ Run | Scr Mat Mat Min Mat Used RIF Installer . | . . . . . Robots Hacked . | . . . . . Non-combat . | . . . . . Combat . | . . . . . Robot Hacks Applied . | . . . . . Relay Couplers Released . | . . . . . Robots Rewired . | . . . . . Allies Hacked . | . . . . . Hacks Repelled . | . . . . . Allies | -11 -10 -9 -9 -8 -------- Run | Scr Mat Mat Min Mat Total Allies . | . . . . . Largest Group . | . . . . . Highest-Rated Group . | . . . . . Highest-Rated Ally . | . . . . . Total Orders . | . . . . . Ally Attacks . | . . . . . Total Damage . | . . . . . Kills . | . . . . . Allies Corrupted . | . . . . . Allies Melted . | . . . . . Intel | -11 -10 -9 -9 -8 ------- Run | Scr Mat Mat Min Mat Robot Analysis Total . | . . . . . Derelict Logs Recovered . | . . . . . Drone Launches . | . . . . . Drone Recoveries . | . . . . . Exploration | -11 -10 -9 -9 -8 ------------- Run | Scr Mat Mat Min Mat Turns Passed 1165 | 7 242 237 516 163 Spaces Moved 675 | 5 175 118 261 116 Core . | . . . . . Treads . | . . . . . Legs 529 | 5 175 118 226 5 Wheels 146 | . . . 35 111 Hover . | . . . . . Flight . | . . . . . Fastest Speed 90 | 120 120 120 90 90 Average Speed 122 | 120 123 120 136 93 Slowest Speed 210 | 120 150 120 210 180 Overloaded Moves . | . . . . . Propulsion Burnouts . | . . . . . Robots Hopped . | . . . . . Cave-ins Triggered . | . . . . . Exploration Rate (%) 22 | 2 31 19 42 19 Regions Visited 4 Branch Regions 1 Pre-discovered Areas . | . . . . . Known Exits Taken . | . . . . . Unknown Exits Taken 4 | 1 1 1 1 . Scrap Searched . | . . . . . Spaces Dug . | . . . . . Terrain Destroyed 191 | . . 19 143 29 Melee . | . . . . . Projectile 11 | . . . 7 4 AOE 180 | . . 19 136 25 Terrain Rammed . | . . . . . Walls Destroyed . | . . . . . Machines Disabled . | . . . . . Actions | -11 -10 -9 -9 -8 --------- Run | Scr Mat Mat Min Mat Total 875 | 8 191 179 355 142 Wait 64 | . . 34 30 . Move 671 | 4 174 117 260 116 Hop . | . . . . . Pick Up 9 | . 7 1 1 . Fast Attach 14 | . 2 . 9 3 Attach 16 | . 1 3 8 4 Detach 8 | . 1 1 4 2 Swap 8 | . . 2 6 . Drop 10 | 4 1 3 2 . Fire 75 | . 5 18 35 17 Melee . | . . . . . Ram . | . . . . . Kick . | . . . . . Crush . | . . . . . Escape Stasis . | . . . . . Rewire . | . . . . . Trap . | . . . . . Miscellaneous . | . . . . . Route ------- -11/Scrapyard -10/Materials -9/Materials -9/Mines -8/Materials History --------- Turn | Location | Event 1 | -11/Scrapyard | Discovered new exit (range 2) 8 | -11/Scrapyard | Entered Materials 225 | -10/Materials | Discovered new exit (range 4) 250 | -10/Materials | Entered another Materials area 250 | -9/Materials | Evolved 2 slots: Propulsion x1, Utility x1 310 | -9/Materials | Build established: Mutant 450 | -9/Materials | Discovered new exit (range 16) 487 | -9/Materials | Entered Mines 503 | -9/Mines | Met a Derelict bent on vengeance 597 | -9/Mines | Assembled infested the area 814 | -9/Mines | Core integrity fell below 50% 850 | -9/Mines | Lost 10 parts (1p4n2u3w) 1000 | -9/Mines | Discovered new exit (range 3) 1003 | -9/Mines | Entered Materials 1003 | -8/Materials | Evolved 2 slots: Utility x2 1082 | -8/Materials | Build established: Scavenger-Mutant 1166 | -8/Materials | Self-destructed Last Messages --------------- Wheel destroyed. U-05 Engineer lays Concrete. U-05 Engineer builds a Wall. Wheel destroyed. U-05 Engineer lays Concrete. K-01 Serf collects debris. Carbon-fiber Leg destroyed. U-05 Engineer lays Concrete. G-47 Trooper destroyed. U-05 Engineer lays Concrete. G-47 Trooper knocked back. U-05 Engineer builds a Door. G-47 Trooper knocked back. Electrolysis Chamber disabled. U-05 Engineer lays Concrete. U-05 Engineer builds a Wall. U-05 Engineer lays Concrete. U-05 Engineer builds a Wall. K-01 Serf collects debris. Lgt. Ion Engine destroyed. Map ----- +----------------------------------------------------+ | | | | | | | | | | | | | | | | | | | | | | | | | | | | | | | | | | | | | | | | | | | ??????????????????################???????????????? | | ??????????????????#]]] #???????????????? | | ??????????????????#]] Y#????????????????? | | ??????????????????#]] [ #????????????????? | | ??????????????????# @ ########?????????? | | ??????????????????# #! #?????????? | | ??????????????????# % k * "" #?????????? | | ?????????????????########g# """ #?????????? | | ??????????????? u% % """ #?????????? | | ?????????????? # g % #?????????? | | ???????????????#### #### ## #?????????? | | ??????????????????????##] # #####?????????? | | ??????????????????????## #???????????? | | ?????????????######+####[k[ #???????????? | | ?????????????# #[[[ ##+###???????????? | | ?????????????# #[[[ #????????????????? | | ?????????????# """ """ # #????????????????? | | ?????????????# """ """ # #????????????????? | | ?????????????# """ """ + #????????????????? | | ?????????????# # u #????????????????? | | ?????????????# # #######????????????????? | | ?????????????# # #??????????????????????? | | ?????????????#######+### +??????????????????????? | | ????????????####### #??????????????????????? | | ??????+ #??????????????????????? | | ?????????############+## #??????????????????????? | | ?????????# # #??????????????????????? | | ?????????# """ """ # #??????????????????????? | | ?????????# """ """ # #??????????????????????? | +----------------------------------------------------+ Best States ------------- Heat Dissipation 56 Energy Generation 18 Energy Capacity 250 Matter Stores 300 Matter Capacity 300 Sight Range 16 Terrain Scan Range 16 Terrain Scan Density 10 Armor Coverage 150 Evasion (%) 42 Item Schematics ----------------- None Robot Schematics ------------------ None Fabricated ------------ Nothing Alien Tech Used ----------------- None Achievements -------------- It Was An Accident, I Swear Challenges ------------ None Game ------ Seed SegregatorLauncherActivator Manual? 0 Play Time 00:15:41 Cumulative 11.2 hours Start 2020.09.21 @ 19:01:09 End 2020.09.21 @ 19:15:28 Sessions 1 Manual Loads 0 Difficulty Rogue Special Mode None Game No. 29 Rogue 29 Adventurer 0 Explorer 0 Win Type - Total 0 Types 0/0/0/0/0/0/0/0/0 Lore% 20 Gallery% 23 Achievement% 21 Wizard Run 0 Options --------- ASCII 1 Keyboard 1 Movement Vi Keybinds 0 Fullscreen 2 Font 24/Proggy Map View 76x50 Tactical HUD 0 Map Filters BRIGHTNESS(90)|SATURATION(66) Filters BRIGHTNESS(90)|SATURATION(66) Steam 1 RUN: ce7678fd-8dbe-4188-9b99-396c4640fc64